fUSD/lending_fUSD_20250507
["ID","MTS","AMOUNT","RATE_DAILY","PERIOD"]
[360226744,1746639038070,-500.0,0.00019741,2]
[360226746,1746639038079,-500.0,0.00019741,2]
[360226749,1746639038089,-500.0,0.00019741,2]
[360226751,1746639038099,-87.80669255,0.00019741,2]
[360226753,1746639038111,-412.19330745,0.00019741,2]
[360226755,1746639038121,-500.0,0.00019741,2]
[360226757,1746639038132,-500.0,0.00019741,2]
[360226759,1746639038142,-390.34223952,0.00019741,2]
[360226761,1746639038152,-500.0,0.00019741,2]
[360226763,1746639038161,-500.0,0.00019741,2]
[360226765,1746639038170,-500.0,0.00019741,2]
[360226767,1746639038180,-500.0,0.00019741,2]
[360226769,1746639038190,-500.0,0.00019741,2]
[360226771,1746639038200,-500.0,0.00019741,2]
[360226773,1746639038209,-500.0,0.00019741,2]
[360226775,1746639038219,-500.0,0.00019741,2]
[360226777,1746639038228,-500.0,0.00019741,2]
[360226779,1746639038239,-500.0,0.00019741,2]
[360226781,1746639038249,-500.0,0.00019741,2]
[360226783,1746639038259,-500.0,0.00019741,2]
[360226785,1746639038269,-500.0,0.00019741,2]
[360226787,1746639038279,-500.0,0.00019741,2]
[360226790,1746639038294,-124.56891568,0.00019741,2]
[360226792,1746639038307,-375.43108432,0.00019741,2]
[360226794,1746639038318,-500.0,0.00019741,2]
[360226796,1746639038327,-500.0,0.00019741,2]
[360226798,1746639038337,-500.0,0.00019741,2]
[360226800,1746639038348,-363.12699311,0.00019741,2]
[360226802,1746639038358,-393.27747171,0.00019742,2]
[360226806,1746639038390,-1812.70000017,0.00019742,2]
[360226809,1746639038410,-709.08266212,0.00019742,2]
[360226811,1746639038422,-1357.36621302,0.00019742,2]
[360226906,1746639039756,-23330.88997447,0.00019742,2]
[360226907,1746639039811,-34412.1652141,0.00019742,2]
[360226908,1746639039822,-2023.12,0.00019742,2]
[360226909,1746639039832,-150.0,0.00019743,2]
[360226910,1746639039841,-150.0,0.00019749,2]
[360226911,1746639039852,-253.80697974,0.00019749,2]
[360226912,1746639039861,-150.0,0.00019758,2]
[360226913,1746639039871,-150.0,0.0001976,2]
[360226914,1746639039881,-150.0,0.00019767,2]
[360226915,1746639039891,-150.0,0.00019768,2]
[360226916,1746639039902,-253.80697974,0.00019771,2]
[360226917,1746639039914,-150.0,0.00019781,2]
[360226918,1746639039924,-858.06450334,0.00019784,2]
[360226919,1746639039934,-150.0,0.00019786,2]
[360226920,1746639039944,-150.0,0.00019788,2]
[360226921,1746639039955,-150.0,0.00019788,2]
[360226922,1746639039965,-150.0,0.00019789,2]
[360226923,1746639039976,-150.0,0.0001979,2]
[360226924,1746639039987,-253.80697974,0.00019792,2]
[360226925,1746639040002,-150.0,0.00019795,2]
[360226926,1746639040013,-609.63,0.00019795,3]
[360226927,1746639040023,-150.0,0.00019796,2]
[360226928,1746639040032,-150.0,0.00019798,2]
[360226929,1746639040043,-150.0,0.00019804,2]
[360226930,1746639040052,-65849.97921139,0.00019805,2]
[360226931,1746639040064,-718.73216411,0.00019805,2]
[360226932,1746639040076,-18979.46066298,0.00019805,2]
[360226933,1746639040086,-150.0,0.00019806,2]
[360226934,1746639040095,-858.06450334,0.00019814,2]
[360226935,1746639040106,-253.80697974,0.00019814,2]
[360226936,1746639040116,-150.0,0.00019814,2]
[360226937,1746639040126,-150.0,0.00019819,2]
[360226938,1746639040136,-150.0,0.00019822,2]
[360226939,1746639040146,-150.0,0.00019822,2]
[360226940,1746639040156,-150.0,0.00019828,2]
[360226941,1746639040165,-150.0,0.00019829,2]
[360226942,1746639040176,-150.0,0.00019831,2]
[360226943,1746639040186,-150.0,0.00019834,2]
[360226944,1746639040195,-253.80697974,0.00019835,2]
[360226945,1746639040206,-23561.98356981,0.00019838,2]
[360226946,1746639040216,-150.0,0.00019841,2]
[360226947,1746639040226,-150.0,0.00019845,2]
[360226948,1746639040236,-150.0,0.00019851,2]
[360226949,1746639040246,-253.80697974,0.00019857,2]
[360226950,1746639040255,-150.0,0.00019861,2]
[360226951,1746639040266,-150.0,0.00019863,2]
[360226952,1746639040276,-150.0,0.00019869,2]
[360226953,1746639040286,-150.0,0.0001987,2]
[360226954,1746639040296,-450.0,0.0001987,2]
[360226955,1746639040307,-450.0,0.0001987,2]
[360226956,1746639040316,-450.0,0.0001987,2]
[360226957,1746639040326,-450.0,0.0001987,2]
[360226958,1746639040336,-187.476243,0.0001987,2]
[360226975,1746639040627,-450.0,0.0001987,2]
[360226977,1746639040638,-450.0,0.0001987,2]
[360226979,1746639040648,-500.0,0.0001987,2]
[360226981,1746639040658,-450.0,0.0001987,2]
[360226983,1746639040668,-450.0,0.0001987,2]
[360226984,1746639040678,-391.94827582,0.0001987,2]
[360226985,1746639040689,-450.0,0.0001987,2]
[360226986,1746639040699,-450.0,0.0001987,2]
[360226987,1746639040709,-450.0,0.0001987,2]
[360226988,1746639040719,-450.0,0.0001987,2]
[360226989,1746639040728,-450.0,0.0001987,2]
[360226990,1746639040738,-450.0,0.0001987,2]
[360226991,1746639040750,-450.0,0.0001987,2]
[360226992,1746639040761,-423.3470834,0.0001987,2]
[360226993,1746639040770,-450.0,0.0001987,2]
[360226994,1746639040780,-500.0,0.0001987,2]
[360226995,1746639040791,-450.0,0.0001987,2]
[360226996,1746639040801,-450.0,0.0001987,2]
[360226997,1746639040811,-450.0,0.0001987,2]
[360226998,1746639040821,-450.0,0.0001987,2]
[360226999,1746639040830,-450.0,0.0001987,2]
[360227000,1746639040840,-1000.0,0.00019871,2]
[360227001,1746639040850,-39531.6369,0.00019871,2]
[360227002,1746639040860,-150.0,0.00019871,2]
[360227003,1746639040869,-583.51681948,0.00019871,2]
[360227004,1746639040879,-1756.37173159,0.00019872,2]
[360227005,1746639040901,-500.0,0.00019873,2]
[360227006,1746639040916,-500.0,0.00019873,2]
[360227007,1746639040926,-501.29466975,0.00019873,2]
[360227008,1746639040937,-500.0,0.00019873,2]
[360227009,1746639040949,-503.82522634,0.00019873,2]
[360227010,1746639040960,-500.0,0.00019873,2]
[360227011,1746639040971,-170.13365596,0.00019873,2]
[360227012,1746639040984,-291.86484364,0.00019873,2]
[360227013,1746639040996,-500.0,0.00019873,2]
[360227014,1746639041006,-500.0,0.00019873,2]
[360227015,1746639041017,-500.0,0.00019873,2]
[360227016,1746639041027,-500.0,0.00019873,2]
[360227017,1746639041037,-500.40684714,0.00019873,2]
[360227018,1746639041049,-500.0,0.00019873,2]
[360227019,1746639041059,-150.0,0.00019875,2]
[360227020,1746639041069,-1756.37173154,0.00019875,2]
[360227021,1746639041080,-1756.37173154,0.00019878,2]
[360227022,1746639041090,-253.80697974,0.00019878,2]
[360227023,1746639041101,-281.44933513,0.00019879,2]
[360227024,1746639041111,-150.0,0.00019881,2]
[360227025,1746639041122,-1756.37173154,0.00019881,2]
[360227026,1746639041133,-209.82215677,0.00019883,2]
[360227027,1746639041144,-1756.37173154,0.00019884,2]
[360227028,1746639041155,-209.82215676,0.00019885,2]
[360227029,1746639041166,-435.61906572,0.00019886,2]
[360227030,1746639041177,-209.82215676,0.00019886,2]
[360227031,1746639041188,-150.0,0.00019887,2]
[360227032,1746639041199,-1756.37173154,0.00019888,2]
[360227033,1746639041210,-150.0,0.00019888,2]
[360227034,1746639041221,-10962.66978455,0.00019889,2]
[360227035,1746639041232,-150.0,0.00019889,2]
[360227036,1746639041242,-1756.37173154,0.00019891,2]
[360227037,1746639041252,-150.0,0.00019891,2]
[360227038,1746639041263,-1756.37173154,0.00019894,2]
[360227039,1746639041274,-83572.83110916,0.00019896,2]
[360227040,1746639041290,-1650.05512954,0.00019896,2]
[360227041,1746639041302,-325.28579978,0.00019896,2]
[360227042,1746639041312,-239.69209658,0.00019896,2]
[360227043,1746639041322,-1756.37173154,0.00019897,2]
[360227044,1746639041331,-150.0,0.00019897,2]
[360227045,1746639041341,-804.2812573,0.00019899,2]
[360227046,1746639041351,-150.0,0.00019899,2]
[360227047,1746639041361,-150.0,0.00019899,2]
[360227048,1746639041371,-740.59922008,0.000199,2]
[360227049,1746639041383,-606.05829084,0.000199,2]
[360227050,1746639041396,-409.71422062,0.000199,2]
[360227051,1746639041407,-590.28577938,0.000199,2]
[360227052,1746639041420,-2040.6618955,0.000199,2]
[360227053,1746639041430,-253.80697974,0.000199,2]
[360227054,1746639041441,-244.5334322,0.000199,2]
[360227055,1746639041451,-2481.8359774,0.000199,2]
[360227056,1746639041463,-784.30167882,0.000199,2]
[360227057,1746639041474,-780.86279122,0.000199,2]
[360227058,1746639041484,-2747.87490696,0.000199,2]
[360227059,1746639041494,-150.0,0.00019909,2]
[360227060,1746639041506,-221.46640916,0.00019916,2]
[360227061,1746639041516,-150.0,0.00019919,2]
[360227062,1746639041527,-150.0,0.00019921,2]
[360227063,1746639041537,-150.0,0.00019926,2]
[360227064,1746639041548,-150.0,0.00019927,2]
[360227065,1746639041557,-150.0,0.00019941,2]
[360227066,1746639041566,-150.0,0.00019945,2]
[360227067,1746639041576,-150.0,0.00019945,2]
[360227068,1746639041587,-150.0,0.00019948,2]
[360227069,1746639041596,-150.0,0.0001995,2]
[360227070,1746639041606,-150.0,0.00019957,2]
[360227071,1746639041616,-150.0,0.00019958,2]
[360227072,1746639041626,-150.0,0.0001996,2]
[360227073,1746639041636,-150.0,0.00019965,2]
[360227074,1746639041646,-150.0,0.00019965,2]
[360227075,1746639041656,-150.0,0.00019966,2]
[360227076,1746639041665,-150.0,0.00019968,2]
[360227077,1746639041675,-450.0,0.0001997,2]
[360227078,1746639041685,-450.0,0.0001997,2]
[360227079,1746639041696,-1978.498,0.0001997,2]
[360227080,1746639041705,-450.0,0.0001997,2]
[360227081,1746639041715,-450.0,0.0001997,2]
[360227082,1746639041724,-450.0,0.0001997,2]
[360227083,1746639041734,-450.0,0.0001997,2]
[360227084,1746639041745,-450.0,0.0001997,2]
[360227085,1746639041755,-450.0,0.0001997,2]
[360227086,1746639041765,-514.4797099,0.0001997,2]
[360227087,1746639041775,-450.0,0.0001997,2]
[360227088,1746639041786,-450.0,0.0001997,2]
[360227089,1746639041797,-489.08953734,0.0001997,2]
[360227090,1746639041807,-595.89877959,0.0001997,2]
[360227091,1746639041818,-338.78301784,0.0001997,2]
[360227092,1746639041827,-450.0,0.0001997,2]
[360227093,1746639041838,-450.0,0.0001997,2]
[360227094,1746639041847,-450.0,0.0001997,2]
[360227095,1746639041857,-475.60526731,0.0001997,2]
[360227096,1746639041867,-450.0,0.0001997,2]
[360227097,1746639041877,-450.0,0.0001997,2]
[360227098,1746639041888,-450.0,0.0001997,2]
[360227099,1746639041898,-450.0,0.0001997,2]
[360227100,1746639041911,-452.73676681,0.0001997,2]
[360227101,1746639041921,-450.0,0.0001997,2]
[360227102,1746639041932,-521.14833361,0.0001997,2]
[360227103,1746639041941,-450.0,0.0001997,2]
[360227104,1746639041952,-450.0,0.0001997,2]
[360227105,1746639041962,-450.0,0.0001997,2]
[360227106,1746639041972,-450.0,0.0001997,2]
[360227107,1746639041982,-506.29090192,0.0001997,2]
[360227108,1746639041992,-450.0,0.0001997,2]
[360227109,1746639042002,-503.66766536,0.0001997,2]
[360227110,1746639042012,-450.0,0.0001997,2]
[360227111,1746639042023,-450.0,0.0001997,2]
[360227112,1746639042033,-450.0,0.0001997,2]
[360227113,1746639042045,-450.0,0.0001997,2]
[360227114,1746639042054,-450.0,0.0001997,2]
[360227115,1746639042063,-450.0,0.0001997,2]
[360227116,1746639042074,-450.0,0.0001997,2]
[360227117,1746639042084,-450.0,0.0001997,2]
[360227118,1746639042094,-450.0,0.0001997,2]
[360227119,1746639042104,-450.0,0.0001997,2]
[360227120,1746639042114,-450.0,0.0001997,2]
[360227121,1746639042124,-450.0,0.0001997,2]
[360227122,1746639042135,-450.0,0.0001997,2]
[360227123,1746639042144,-450.0,0.0001997,2]
[360227124,1746639042154,-450.0,0.0001997,2]
[360227125,1746639042164,-304.19441968,0.0001997,2]
[360227126,1746639042175,-450.0,0.0001997,2]
[360227127,1746639042186,-450.0,0.0001997,2]
[360227128,1746639042196,-450.0,0.0001997,2]
[360227129,1746639042206,-450.0,0.0001997,2]
[360227130,1746639042217,-450.0,0.0001997,2]
[360227131,1746639042227,-533.09813422,0.0001997,2]
[360227132,1746639042238,-450.0,0.0001997,2]
[360227133,1746639042248,-450.0,0.0001997,2]
[360227134,1746639042258,-450.0,0.0001997,2]
[360227135,1746639042269,-450.0,0.0001997,2]
[360227136,1746639042278,-588.94,0.0001997,2]
[360227137,1746639042290,-1209.624103,0.0001997,2]
[360227138,1746639042301,-5661.79841633,0.0001997,2]
[360227139,1746639042315,-1781.137005,0.0001997,2]
[360227140,1746639042327,-931.07571867,0.0001997,2]
[360227141,1746639042337,-432.61263062,0.0001997,2]
[360227142,1746639042349,-176.76835438,0.0001997,2]
[360227143,1746639042359,-450.0,0.0001997,2]
[360227144,1746639042369,-450.0,0.0001997,2]
[360227145,1746639042379,-450.0,0.0001997,2]
[360227146,1746639042389,-3065.50979753,0.0001997,2]
[360227147,1746639042401,-910.52020247,0.0001997,2]
[360227148,1746639042411,-450.0,0.0001997,2]
[360227149,1746639042421,-450.0,0.0001997,2]
[360227150,1746639042431,-4.2207929,0.0001997,2]
[360227151,1746639042444,-445.7792071,0.0001997,2]
[360227152,1746639042454,-450.0,0.0001997,2]
[360227153,1746639042465,-450.0,0.0001997,2]
[360227154,1746639042474,-450.0,0.0001997,2]
[360227155,1746639042485,-293.23493332,0.0001997,2]
[360227157,1746639042495,-450.0,0.0001997,2]
[360227159,1746639042505,-500.0,0.0001997,2]
[360227160,1746639042515,-450.0,0.0001997,2]
[360227162,1746639042526,-500.0,0.0001997,2]
[360227163,1746639042535,-186.19,0.0001997,2]
[360227164,1746639042546,-450.0,0.0001997,2]
[360227165,1746639042556,-450.0,0.0001997,2]
[360227166,1746639042565,-450.0,0.0001997,2]
[360227167,1746639042575,-450.0,0.0001997,2]
[360227168,1746639042585,-450.0,0.0001997,2]
[360227169,1746639042595,-513.8096182,0.0001997,2]
[360227170,1746639042605,-450.0,0.0001997,2]
[360227171,1746639042615,-450.0,0.0001997,2]
[360227172,1746639042625,-450.0,0.0001997,2]
[360227173,1746639042635,-167.2791683,0.0001997,2]
[360227174,1746639042648,-282.7208317,0.0001997,2]
[360227175,1746639042657,-450.0,0.0001997,2]
[360227176,1746639042668,-450.0,0.0001997,2]
[360227177,1746639042677,-266.16518602,0.0001997,2]
[360227178,1746639042686,-450.0,0.0001997,2]
[360227179,1746639042696,-450.0,0.0001997,2]
[360227180,1746639042706,-450.0,0.0001997,2]
[360227181,1746639042716,-450.0,0.0001997,2]
[360227182,1746639042726,-450.0,0.0001997,2]
[360227183,1746639042735,-450.0,0.0001997,2]
[360227184,1746639042745,-450.0,0.0001997,2]
[360227185,1746639042755,-450.0,0.0001997,2]
[360227186,1746639042764,-450.0,0.0001997,2]
[360227187,1746639042774,-450.0,0.0001997,2]
[360227188,1746639042784,-450.0,0.0001997,2]
[360227189,1746639042794,-450.0,0.0001997,2]
[360227190,1746639042804,-450.0,0.0001997,2]
[360227191,1746639042814,-450.0,0.0001997,2]
[360227192,1746639042824,-450.0,0.0001997,2]
[360227193,1746639042833,-450.0,0.0001997,2]
[360227194,1746639042843,-450.0,0.0001997,2]
[360227195,1746639042853,-450.0,0.0001997,2]
[360227196,1746639042863,-450.0,0.0001997,2]
[360227197,1746639042873,-450.0,0.0001997,2]
[360227198,1746639042882,-450.0,0.0001997,2]
[360227199,1746639042893,-450.0,0.0001997,2]
[360227200,1746639042903,-450.0,0.0001997,2]
[360227201,1746639042916,-450.0,0.0001997,2]
[360227202,1746639042925,-450.0,0.0001997,2]
[360227203,1746639042934,-450.0,0.0001997,2]
[360227204,1746639042945,-450.0,0.0001997,2]
[360227205,1746639042956,-450.0,0.0001997,2]
[360227206,1746639042966,-450.0,0.0001997,2]
[360227207,1746639042976,-450.0,0.0001997,2]
[360227208,1746639042987,-450.0,0.0001997,2]
[360227209,1746639042996,-450.0,0.0001997,2]
[360227210,1746639043006,-105.29591147,0.0001997,2]
[360227211,1746639043024,-344.70408853,0.0001997,2]
[360227212,1746639043034,-450.0,0.0001997,2]
[360227213,1746639043044,-450.0,0.0001997,2]
[360227214,1746639043054,-450.0,0.0001997,2]
[360227215,1746639043063,-450.0,0.0001997,2]
[360227216,1746639043073,-450.0,0.0001997,2]
[360227217,1746639043083,-450.0,0.0001997,2]
[360227218,1746639043093,-450.0,0.0001997,2]
[360227219,1746639043103,-450.0,0.0001997,2]
[360227220,1746639043113,-450.0,0.0001997,2]
[360227221,1746639043123,-1038.11197768,0.0001997,2]
[360227222,1746639043135,-604.96802232,0.0001997,2]
[360227223,1746639043145,-450.0,0.0001997,2]
[360227224,1746639043155,-450.0,0.0001997,2]
[360227225,1746639043166,-445.03197768,0.0001997,2]
[360227226,1746639043178,-1998.47802232,0.0001997,2]
[360227227,1746639043188,-450.0,0.0001997,2]
[360227228,1746639043198,-450.0,0.0001997,2]
[360227229,1746639043208,-450.0,0.0001997,2]
[360227230,1746639043218,-450.0,0.0001997,2]
[360227231,1746639043228,-450.0,0.0001997,2]
[360227233,1746639043237,-450.0,0.0001997,2]
[360227234,1746639043247,-450.0,0.0001997,2]
[360227235,1746639043258,-276.53486923,0.0001997,2]
[360227237,1746639043268,-450.0,0.0001997,2]
[360227238,1746639043278,-450.0,0.0001997,2]
[360227239,1746639043288,-450.0,0.0001997,2]
[360227240,1746639043299,-500.0,0.0001997,2]
[360227241,1746639043309,-375.23600307,0.0001997,2]
[360227242,1746639043327,-74.76399693,0.0001997,2]
[360227243,1746639043337,-450.0,0.0001997,2]
[360227244,1746639043347,-38402.1633333,0.00019971,2]
[360227245,1746639043357,-5243.2427279,0.00019971,2]
[360227246,1746639043367,-26969.1054018,0.00019971,2]
[360227248,1746639043378,-150.0,0.00019972,2]
[360227250,1746639043387,-150.0,0.00019972,2]
[360227252,1746639043397,-527.4996018,0.00019973,2]
[360227254,1746639043407,-500.0,0.00019973,2]
[360227255,1746639043417,-500.0,0.00019973,2]
[360227256,1746639043427,-560.3493445,0.00019973,2]
[360227257,1746639043437,-500.0,0.00019973,2]
[360227258,1746639043446,-500.0,0.00019973,2]
[360227259,1746639043455,-313.86694118,0.00019973,2]
[360227260,1746639043465,-500.0,0.00019973,2]
[360227261,1746639043474,-303.82397077,0.00019973,2]
[360227262,1746639043484,-500.0,0.00019973,2]
[360227263,1746639043494,-500.0,0.00019973,2]
[360227264,1746639043504,-500.0,0.00019973,2]
[360227265,1746639043514,-500.0,0.00019973,2]
[360227266,1746639043524,-171.05888389,0.00019973,2]
[360227267,1746639043534,-158.78346517,0.00019975,2]
[360227268,1746639043545,-150.0,0.00019975,2]
[360227269,1746639043555,-201.5826781,0.00019978,2]
[360227270,1746639043565,-500.0,0.00019978,2]
[360227271,1746639043575,-500.0,0.00019978,2]
[360227272,1746639043585,-500.0,0.00019978,2]
[360227273,1746639043594,-500.0,0.00019978,2]
[360227274,1746639043604,-500.0,0.00019978,2]
[360227275,1746639043614,-500.0,0.00019978,2]
[360227276,1746639043624,-500.0,0.00019978,2]
[360227277,1746639043633,-500.0,0.00019978,2]
[360227278,1746639043643,-500.0,0.00019978,2]
[360227279,1746639043652,-279.60938976,0.00019978,2]
[360227280,1746639043662,-500.0,0.00019978,2]
[360227281,1746639043671,-500.0,0.00019978,2]
[360227282,1746639043681,-500.0,0.00019978,2]
[360227283,1746639043690,-500.0,0.00019978,2]
[360227284,1746639043700,-500.0,0.00019978,2]
[360227285,1746639043709,-500.0,0.00019978,2]
[360227286,1746639043719,-300.0,0.00019978,2]
[360227287,1746639043729,-450.0,0.00019979,2]
[360227288,1746639043740,-450.0,0.00019979,2]
[360227289,1746639043750,-450.0,0.00019979,2]
[360227290,1746639043760,-450.0,0.00019979,2]
[360227291,1746639043770,-450.0,0.00019979,2]
[360227292,1746639043780,-450.0,0.00019979,2]
[360227293,1746639043792,-450.0,0.00019979,2]
[360227294,1746639043802,-450.0,0.00019979,2]
[360227295,1746639043811,-450.0,0.00019979,2]
[360227296,1746639043821,-450.0,0.00019979,2]
[360227297,1746639043832,-450.0,0.00019979,2]
[360227298,1746639043841,-450.0,0.00019979,2]
[360227299,1746639043851,-450.0,0.00019979,2]
[360227300,1746639043862,-450.0,0.00019979,2]
[360227301,1746639043871,-450.0,0.00019979,2]
[360227302,1746639043882,-450.0,0.00019979,2]
[360227303,1746639043893,-450.0,0.00019979,2]
[360227304,1746639043903,-450.0,0.00019979,2]
[360227305,1746639043917,-450.0,0.00019979,2]
[360227306,1746639043927,-450.0,0.00019979,2]
[360227307,1746639043937,-450.0,0.00019979,2]
[360227308,1746639043947,-450.0,0.00019979,2]
[360227309,1746639043957,-450.0,0.00019979,2]
[360227310,1746639043967,-150.0,0.00019979,2]
[360227311,1746639043977,-410.93975149,0.00019979,2]
[360227312,1746639043987,-550.0,0.00019979,2]
[360227313,1746639043997,-450.0,0.00019979,2]
[360227314,1746639044007,-500.0,0.00019979,2]
[360227315,1746639044016,-450.0,0.00019979,2]
[360227316,1746639044026,-475.54842737,0.00019979,2]
[360227317,1746639044036,-450.0,0.00019979,2]
[360227318,1746639044046,-450.0,0.00019979,2]
[360227319,1746639044055,-450.0,0.00019979,2]
[360227320,1746639044065,-450.0,0.00019979,2]
[360227321,1746639044075,-450.0,0.00019979,2]
[360227322,1746639044084,-450.0,0.00019979,2]
[360227323,1746639044094,-450.0,0.00019979,2]
[360227324,1746639044104,-455.68575044,0.00019979,2]
[360227325,1746639044114,-450.0,0.00019979,2]
[360227326,1746639044124,-450.0,0.00019979,2]
[360227327,1746639044133,-450.0,0.00019979,2]
[360227328,1746639044143,-450.0,0.00019979,2]
[360227329,1746639044153,-513.72,0.00019979,2]
[360227330,1746639044163,-450.0,0.00019979,2]
[360227331,1746639044172,-450.0,0.00019979,2]
[360227332,1746639044182,-778.47,0.00019979,2]
[360227333,1746639044191,-530.22,0.00019979,2]
[360227334,1746639044202,-589.22490729,0.00019979,2]
[360227335,1746639044212,-450.0,0.00019979,2]
[360227336,1746639044222,-450.0,0.00019979,2]
[360227337,1746639044232,-450.0,0.00019979,2]
[360227338,1746639044241,-450.0,0.00019979,2]
[360227339,1746639044251,-450.0,0.00019979,2]
[360227340,1746639044261,-450.0,0.00019979,2]
[360227341,1746639044271,-11991.31,0.00019979,2]
[360227342,1746639044280,-450.0,0.00019979,2]
[360227343,1746639044290,-500.0,0.00019979,2]
[360227344,1746639044301,-450.0,0.00019979,2]
[360227345,1746639044311,-407.25791908,0.00019979,2]
[360227346,1746639044321,-450.0,0.00019979,2]
[360227347,1746639044330,-450.0,0.00019979,2]
[360227348,1746639044340,-450.0,0.00019979,2]
[360227349,1746639044350,-450.0,0.00019979,2]
[360227350,1746639044360,-450.0,0.00019979,2]
[360227351,1746639044370,-450.0,0.00019979,2]
[360227352,1746639044380,-450.0,0.00019979,2]
[360227353,1746639044390,-450.0,0.00019979,2]
[360227354,1746639044400,-450.0,0.00019979,2]
[360227355,1746639044409,-450.0,0.00019979,2]
[360227356,1746639044419,-450.0,0.00019979,2]
[360227357,1746639044430,-450.0,0.00019979,2]
[360227358,1746639044440,-1049.06,0.00019979,2]
[360227359,1746639044449,-450.0,0.00019979,2]
[360227360,1746639044459,-460.46,0.00019979,2]
[360227361,1746639044469,-450.0,0.00019979,2]
[360227362,1746639044479,-450.0,0.00019979,2]
[360227363,1746639044489,-450.0,0.00019979,2]
[360227364,1746639044498,-450.0,0.00019979,2]
[360227365,1746639044508,-470.0,0.00019979,2]
[360227366,1746639044518,-450.0,0.00019979,2]
[360227367,1746639044528,-779.41,0.00019979,2]
[360227368,1746639044538,-450.0,0.00019979,2]
[360227369,1746639044548,-450.0,0.00019979,2]
[360227370,1746639044558,-500.0,0.00019979,2]
[360227371,1746639044568,-450.0,0.00019979,2]
[360227372,1746639044578,-176.71904852,0.00019979,2]
[360227373,1746639044588,-450.0,0.00019979,2]
[360227374,1746639044597,-3956.04,0.00019979,2]
[360227375,1746639044607,-487.24,0.00019979,2]
[360227376,1746639044617,-450.0,0.00019979,2]
[360227377,1746639044627,-450.0,0.00019979,2]
[360227378,1746639044637,-450.0,0.00019979,2]
[360227379,1746639044646,-450.0,0.00019979,2]
[360227380,1746639044656,-464.12529235,0.00019979,2]
[360227381,1746639044666,-450.0,0.00019979,2]
[360227382,1746639044675,-450.0,0.00019979,2]
[360227383,1746639044685,-450.0,0.00019979,2]
[360227384,1746639044695,-450.0,0.00019979,2]
[360227385,1746639044704,-450.0,0.00019979,2]
[360227386,1746639044714,-450.0,0.00019979,2]
[360227387,1746639044724,-450.0,0.00019979,2]
[360227388,1746639044734,-450.0,0.00019979,2]
[360227389,1746639044929,-450.0,0.00019979,2]
[360227390,1746639044940,-450.0,0.00019979,2]
[360227391,1746639044951,-450.0,0.00019979,2]
[360227392,1746639044963,-450.0,0.00019979,2]
[360227393,1746639044974,-450.0,0.00019979,2]
[360227394,1746639044985,-450.0,0.00019979,2]
[360227395,1746639044997,-450.0,0.00019979,2]
[360227396,1746639045007,-450.0,0.00019979,2]
[360227397,1746639045018,-1203.2,0.00019979,2]
[360227398,1746639045027,-450.0,0.00019979,2]
[360227399,1746639045036,-450.0,0.00019979,2]
[360227400,1746639045047,-450.0,0.00019979,2]
[360227401,1746639045056,-450.0,0.00019979,2]
[360227402,1746639045066,-1380.31,0.00019979,2]